[Event "Early-Titled-Tuesday-Blitz-October-03-2023"]
[Site "Chess.com"]
[Date "2023.10.03"]
[Round "9"]
[White "RETURNOFTHELAGGER"]
[Black "Caroexpert"]
[Result "1-0"]
[WhiteElo "2659"]
[BlackElo "2495"]
[TimeControl "180+1"]
[EndTime "9:44:30 PDT"]
[Termination "RETURNOFTHELAGGER won by resignation"]

1. e4 {[%clk 0:02:45.2]} 1... c6 {[%clk 0:02:59.2]} 2. d4 {[%clk 0:02:40.4]}
2... d5 {[%clk 0:03:00.1]} 3. Nc3 {[%clk 0:02:40.4]} 3... dxe4 {[%clk
0:03:00.3]} 4. Nxe4 {[%clk 0:02:40.6]} 4... Nf6 {[%clk 0:03:01.2]} 5. Nxf6+
{[%clk 0:02:36.6]} 5... exf6 {[%clk 0:03:02.1]} 6. c3 {[%clk 0:02:34.6]} 6...
Bd6 {[%clk 0:03:02.3]} 7. Bd3 {[%clk 0:02:34.8]} 7... O-O {[%clk 0:03:02.7]} 8.
Qc2 {[%clk 0:02:32.2]} 8... Re8+ {[%clk 0:03:02.9]} 9. Ne2 {[%clk 0:02:32.8]}
9... h5 {[%clk 0:03:03.5]} 10. Be3 {[%clk 0:02:31.4]} 10... Nd7 {[%clk
0:03:03.5]} 11. O-O-O {[%clk 0:02:29.9]} 11... b5 {[%clk 0:03:03.8]} 12. g4
{[%clk 0:02:24.2]} 12... hxg4 {[%clk 0:02:59.4]} 13. Rdg1 {[%clk 0:02:20.6]}
13... Nb6 {[%clk 0:02:43.2]} 14. h3 {[%clk 0:02:16.9]} 14... gxh3 {[%clk
0:02:19.8]} 15. Bh6 {[%clk 0:02:16]} 15... g5 {[%clk 0:02:12.1]} 16. f4 {[%clk
0:02:12.5]} 16... Rxe2 {[%clk 0:01:02.1]} 17. Qxe2 {[%clk 0:02:13.4]} 17...
Bxf4+ {[%clk 0:01:02.3]} 18. Kb1 {[%clk 0:02:12.6]} 18... Be6 {[%clk 0:01:00]}
19. Qe4 {[%clk 0:01:56.9]} 19... f5 {[%clk 0:00:30.4]} 20. Qxf4 {[%clk 0:01:56]}
20... f6 {[%clk 0:00:21.5]} 21. Bxf5 {[%clk 0:01:49.7]} 21... Qd5 {[%clk
0:00:07]} 22. Bxe6+ {[%clk 0:01:39.5]} 22... Qxe6 {[%clk 0:00:07]} 23. Bxg5
{[%clk 0:01:40.4]} 23... fxg5 {[%clk 0:00:05.1]} 24. Rxg5+ {[%clk 0:01:41.3]}
24... Kh7 {[%clk 0:00:05.6]} 1-0

[Event "Early-Titled-Tuesday-Blitz-October-03-2023"]
[Site "Chess.com"]
[Date "2023.10.03"]
[Round "9"]
[White "PoXerStar"]
[Black "GianmarcoVaR"]
[Result "1/2-1/2"]
[WhiteElo "2451"]
[BlackElo "2653"]
[TimeControl "180+1"]
[EndTime "9:44:32 PDT"]
[Termination "Game drawn by agreement"]

1. Nf3 {[%clk 0:03:00.1]} 1... d5 {[%clk 0:02:55.9]} 2. g3 {[%clk 0:02:59.8]}
2... c6 {[%clk 0:02:56.1]} 3. Bg2 {[%clk 0:03:00.7]} 3... Bg4 {[%clk 0:02:56.4]}
4. O-O {[%clk 0:03:00.9]} 4... Nd7 {[%clk 0:02:56.8]} 5. d3 {[%clk 0:03:01.5]}
5... e5 {[%clk 0:02:56.8]} 6. e4 {[%clk 0:02:59.8]} 6... Bd6 {[%clk 0:02:47.1]}
7. Nbd2 {[%clk 0:02:59.9]} 7... Ne7 {[%clk 0:02:46.5]} 8. h3 {[%clk 0:03:00.5]}
8... Bh5 {[%clk 0:02:46.8]} 9. Re1 {[%clk 0:02:55.7]} 9... O-O {[%clk
0:02:46.1]} 10. g4 {[%clk 0:02:51.2]} 10... Bg6 {[%clk 0:02:46]} 11. Nh4 {[%clk
0:02:51.8]} 11... f6 {[%clk 0:02:43.7]} 12. Nf5 {[%clk 0:02:48.3]} 12... Nxf5
{[%clk 0:02:38.8]} 13. gxf5 {[%clk 0:02:44.2]} 13... Bf7 {[%clk 0:02:38.7]} 14.
Kh1 {[%clk 0:02:27.1]} 14... Kh8 {[%clk 0:02:37.9]} 15. Rg1 {[%clk 0:02:27.5]}
15... Rg8 {[%clk 0:02:35.9]} 16. Bf3 {[%clk 0:02:25.5]} 16... g6 {[%clk
0:02:30.3]} 17. fxg6 {[%clk 0:02:21.2]} 17... hxg6 {[%clk 0:02:22.3]} 18. Nf1
{[%clk 0:01:53.8]} 18... Qe7 {[%clk 0:02:21.5]} 19. Qd2 {[%clk 0:01:52.4]} 19...
Rg7 {[%clk 0:02:20.6]} 20. Ne3 {[%clk 0:01:48.9]} 20... Rh7 {[%clk 0:02:19.8]}
21. Kg2 {[%clk 0:01:19.4]} 21... Be6 {[%clk 0:02:14.7]} 22. Rh1 {[%clk
0:01:15.8]} 22... dxe4 {[%clk 0:02:02.5]} 23. dxe4 {[%clk 0:01:14.5]} 23... Kg7
{[%clk 0:01:55.9]} 24. Bg4 {[%clk 0:01:11.4]} 24... Rah8 {[%clk 0:01:54.2]} 25.
Qe2 {[%clk 0:01:00.5]} 25... Nc5 {[%clk 0:01:28.5]} 26. Bxe6 {[%clk 0:00:40.6]}
26... Qxe6 {[%clk 0:01:28]} 27. Ng4 {[%clk 0:00:41]} 27... f5 {[%clk 0:01:23.8]}
28. exf5 {[%clk 0:00:40.5]} 28... gxf5 {[%clk 0:01:24.5]} 29. Ne3 {[%clk
0:00:38]} 29... Qh6 {[%clk 0:01:22.3]} 30. Nxf5+ {[%clk 0:00:36.4]} 1/2-1/2

[Event "Early-Titled-Tuesday-Blitz-October-03-2023"]
[Site "Chess.com"]
[Date "2023.10.03"]
[Round "9"]
[White "szachuspl"]
[Black "Korchmar_Vasiliy"]
[Result "0-1"]
[WhiteElo "2534"]
[BlackElo "2689"]
[TimeControl "180+1"]
[EndTime "9:44:40 PDT"]
[Termination "Korchmar_Vasiliy won by checkmate"]

1. d4 {[%clk 0:03:00.9]} 1... Nf6 {[%clk 0:03:00]} 2. c4 {[%clk 0:03:00.4]} 2...
e6 {[%clk 0:03:00.6]} 3. Nf3 {[%clk 0:03:00.3]} 3... d5 {[%clk 0:03:01.1]} 4.
Nc3 {[%clk 0:03:00.1]} 4... dxc4 {[%clk 0:03:00.4]} 5. Bg5 {[%clk 0:02:56.9]}
5... a6 {[%clk 0:02:46.7]} 6. a4 {[%clk 0:02:52]} 6... Bb4 {[%clk 0:02:41.9]} 7.
e3 {[%clk 0:02:51]} 7... h6 {[%clk 0:02:42]} 8. Bxf6 {[%clk 0:02:50.5]} 8...
Qxf6 {[%clk 0:02:41.8]} 9. Bxc4 {[%clk 0:02:51.1]} 9... c5 {[%clk 0:02:36.8]}
10. O-O {[%clk 0:02:49.6]} 10... cxd4 {[%clk 0:02:32.7]} 11. Nxd4 {[%clk
0:02:45.3]} 11... Bxc3 {[%clk 0:02:26.1]} 12. bxc3 {[%clk 0:02:44.8]} 12... O-O
{[%clk 0:02:26.7]} 13. Qb3 {[%clk 0:02:38.9]} 13... e5 {[%clk 0:02:21.7]} 14.
Nf3 {[%clk 0:02:30.9]} 14... Nc6 {[%clk 0:02:21.9]} 15. Qb6 {[%clk 0:02:23.8]}
15... Bg4 {[%clk 0:02:18.9]} 16. Bd5 {[%clk 0:02:19.3]} 16... Rad8 {[%clk
0:02:01.6]} 17. Rfd1 {[%clk 0:01:55.4]} 17... Rxd5 {[%clk 0:01:37.9]} 18. Rxd5
{[%clk 0:01:54.8]} 18... Bxf3 {[%clk 0:01:38.6]} 19. gxf3 {[%clk 0:01:55.1]}
19... Qxf3 {[%clk 0:01:39.5]} 20. Rad1 {[%clk 0:01:46.1]} 20... Nd4 {[%clk
0:01:27.6]} 21. R5xd4 {[%clk 0:01:33]} 21... exd4 {[%clk 0:01:26.3]} 22. Rxd4
{[%clk 0:01:32.7]} 22... Re8 {[%clk 0:01:04.1]} 23. Rf4 {[%clk 0:01:29.2]} 23...
Qd1+ {[%clk 0:01:00.4]} 24. Kg2 {[%clk 0:01:29.3]} 24... Qd5+ {[%clk 0:01:01.1]}
25. Kf1 {[%clk 0:01:04]} 25... Qd1+ {[%clk 0:00:48.1]} 26. Kg2 {[%clk 0:01:04]}
26... Re6 {[%clk 0:00:48.4]} 27. Qxb7 {[%clk 0:00:54.6]} 27... Rg6+ {[%clk
0:00:47]} 28. Kh3 {[%clk 0:00:52.4]} 28... Qh5+ {[%clk 0:00:47]} 29. Rh4 {[%clk
0:00:48.7]} 29... Qf5+ {[%clk 0:00:47.3]} 30. Rg4 {[%clk 0:00:48.8]} 30... Qxg4#
{[%clk 0:00:48.2]} 0-1

[Event "Early-Titled-Tuesday-Blitz-October-03-2023"]
[Site "Chess.com"]
[Date "2023.10.03"]
[Round "9"]
[White "koncheto"]
[Black "Roman_Ovetchkin"]
[Result "0-1"]
[WhiteElo "2546"]
[BlackElo "2708"]
[TimeControl "180+1"]
[EndTime "9:44:46 PDT"]
[Termination "Roman_Ovetchkin won by resignation"]

1. e4 {[%clk 0:03:00.9]} 1... c6 {[%clk 0:02:59.7]} 2. d4 {[%clk 0:03:00.9]}
2... d5 {[%clk 0:02:59.5]} 3. Nc3 {[%clk 0:03:01.8]} 3... dxe4 {[%clk
0:02:59.6]} 4. Nxe4 {[%clk 0:03:00.4]} 4... Nf6 {[%clk 0:03:00.5]} 5. Nxf6+
{[%clk 0:02:57.5]} 5... exf6 {[%clk 0:03:01.4]} 6. c3 {[%clk 0:02:51.4]} 6...
Bd6 {[%clk 0:03:00.6]} 7. Bd3 {[%clk 0:02:51.4]} 7... O-O {[%clk 0:02:59.9]} 8.
Ne2 {[%clk 0:02:51.9]} 8... Re8 {[%clk 0:02:58.9]} 9. O-O {[%clk 0:02:51.9]}
9... Nd7 {[%clk 0:02:58.3]} 10. Ng3 {[%clk 0:02:51.3]} 10... Nf8 {[%clk
0:02:56.9]} 11. f4 {[%clk 0:02:51.4]} 11... Bc7 {[%clk 0:02:18.6]} 12. f5 {[%clk
0:02:41.6]} 12... Bxg3 {[%clk 0:02:02.7]} 13. hxg3 {[%clk 0:02:42.5]} 13... c5
{[%clk 0:01:59.7]} 14. dxc5 {[%clk 0:02:39.2]} 14... Qd5 {[%clk 0:01:57.5]} 15.
Qf3 {[%clk 0:01:55]} 15... Qxc5+ {[%clk 0:01:56.4]} 16. Kh2 {[%clk 0:01:55.4]}
16... Bd7 {[%clk 0:01:53.4]} 17. Be4 {[%clk 0:01:52.6]} 17... Bc6 {[%clk
0:01:39]} 18. Bxc6 {[%clk 0:01:50.8]} 18... bxc6 {[%clk 0:01:39]} 19. Bf4 {[%clk
0:01:48.5]} 19... Qxf5 {[%clk 0:01:32.8]} 20. Qxc6 {[%clk 0:01:47.3]} 20... Qc2
{[%clk 0:01:24.3]} 21. b3 {[%clk 0:01:26.6]} 21... Rac8 {[%clk 0:01:19.6]} 22.
Rfc1 {[%clk 0:01:05.2]} 22... Qf5 {[%clk 0:01:13.6]} 23. Qa6 {[%clk 0:00:58.4]}
23... Ng6 {[%clk 0:01:03.4]} 24. Bd6 {[%clk 0:00:55.9]} 24... h5 {[%clk
0:00:58.2]} 25. c4 {[%clk 0:00:52.7]} 25... Re2 {[%clk 0:00:56.5]} 26. c5 {[%clk
0:00:49.4]} 26... Rce8 {[%clk 0:00:55.1]} 27. c6 {[%clk 0:00:35.9]} 27... Qd5
{[%clk 0:00:54.6]} 0-1

[Event "Early-Titled-Tuesday-Blitz-October-03-2023"]
[Site "Chess.com"]
[Date "2023.10.03"]
[Round "9"]
[White "Iskusnyh"]
[Black "AnaKuchava"]
[Result "1-0"]
[WhiteElo "2608"]
[BlackElo "2233"]
[TimeControl "180+1"]
[EndTime "9:44:56 PDT"]
[Termination "Iskusnyh won by checkmate"]

1. d4 {[%clk 0:03:00.9]} 1... d5 {[%clk 0:02:59.7]} 2. c4 {[%clk 0:03:00]} 2...
e6 {[%clk 0:02:59.2]} 3. Nf3 {[%clk 0:03:00.2]} 3... Nf6 {[%clk 0:02:58.6]} 4.
g3 {[%clk 0:03:00.1]} 4... Bb4+ {[%clk 0:02:57.9]} 5. Bd2 {[%clk 0:02:57.6]}
5... Be7 {[%clk 0:02:56.2]} 6. Bg2 {[%clk 0:02:57.3]} 6... O-O {[%clk
0:02:54.9]} 7. Qc2 {[%clk 0:02:56.2]} 7... c6 {[%clk 0:02:50.1]} 8. Nc3 {[%clk
0:02:55.9]} 8... b6 {[%clk 0:02:47.3]} 9. e4 {[%clk 0:02:41.5]} 9... dxc4 {[%clk
0:02:37.6]} 10. Rd1 {[%clk 0:02:39.8]} 10... Bb7 {[%clk 0:02:33.2]} 11. O-O
{[%clk 0:02:38.9]} 11... Nbd7 {[%clk 0:02:27.9]} 12. Bf4 {[%clk 0:02:37.3]}
12... b5 {[%clk 0:02:23.6]} 13. Rfe1 {[%clk 0:02:35.2]} 13... Qb6 {[%clk
0:02:19.4]} 14. h4 {[%clk 0:01:36.7]} 14... Rfd8 {[%clk 0:01:41.1]} 15. Bg5
{[%clk 0:01:26.5]} 15... h6 {[%clk 0:01:33.5]} 16. e5 {[%clk 0:01:26]} 16...
hxg5 {[%clk 0:01:09]} 17. exf6 {[%clk 0:01:24.6]} 17... Nxf6 {[%clk 0:00:58.7]}
18. hxg5 {[%clk 0:01:22.9]} 18... Nd5 {[%clk 0:00:58.7]} 19. g6 {[%clk
0:01:22.8]} 19... Nb4 {[%clk 0:00:28.6]} 20. gxf7+ {[%clk 0:01:19.3]} 20... Kxf7
{[%clk 0:00:29.5]} 21. Ne5+ {[%clk 0:01:19.3]} 21... Kg8 {[%clk 0:00:25.1]} 22.
Qg6 {[%clk 0:01:17.2]} 22... Bf6 {[%clk 0:00:25.1]} 23. Qf7+ {[%clk 0:01:09.1]}
23... Kh8 {[%clk 0:00:24.5]} 24. Ng6+ {[%clk 0:01:08.7]} 24... Kh7 {[%clk
0:00:24.5]} 25. Be4 {[%clk 0:01:08.5]} 25... c5 {[%clk 0:00:13.4]} 26. Ne7+
{[%clk 0:01:02.8]} 26... Kh8 {[%clk 0:00:11.9]} 27. Qh5# {[%clk 0:01:02.2]} 1-0

[Event "Early-Titled-Tuesday-Blitz-October-03-2023"]
[Site "Chess.com"]
[Date "2023.10.03"]
[Round "9"]
[White "Leonid_Starozhilov"]
[Black "vladgoncharov"]
[Result "1-0"]
[WhiteElo "2732"]
[BlackElo "2514"]
[TimeControl "180+1"]
[EndTime "9:44:58 PDT"]
[Termination "Leonid_Starozhilov won by resignation"]

1. d4 {[%clk 0:03:00.9]} 1... Nf6 {[%clk 0:02:59.5]} 2. Nf3 {[%clk 0:02:59.9]}
2... e6 {[%clk 0:02:58.8]} 3. Bf4 {[%clk 0:02:57.1]} 3... c5 {[%clk 0:02:57]} 4.
e3 {[%clk 0:02:55.6]} 4... d5 {[%clk 0:02:51.6]} 5. c3 {[%clk 0:02:53.7]} 5...
Nc6 {[%clk 0:02:50.7]} 6. Nbd2 {[%clk 0:02:52]} 6... Bd6 {[%clk 0:02:50.3]} 7.
Bg3 {[%clk 0:02:47.9]} 7... Bxg3 {[%clk 0:02:49.8]} 8. hxg3 {[%clk 0:02:47.9]}
8... O-O {[%clk 0:02:49.6]} 9. Bd3 {[%clk 0:02:48.3]} 9... h6 {[%clk 0:02:48.5]}
10. Ne5 {[%clk 0:02:45.2]} 10... Nxe5 {[%clk 0:01:59.7]} 11. dxe5 {[%clk
0:02:43.9]} 11... Nd7 {[%clk 0:01:56.9]} 12. Qh5 {[%clk 0:02:26.4]} 12... f5
{[%clk 0:01:56.7]} 13. exf6 {[%clk 0:02:15.9]} 13... Qxf6 {[%clk 0:01:52.6]} 14.
Nf3 {[%clk 0:02:09.9]} 14... c4 {[%clk 0:00:39.9]} 15. Bc2 {[%clk 0:02:05.8]}
15... Nc5 {[%clk 0:00:38.5]} 16. g4 {[%clk 0:01:48.3]} 16... Ne4 {[%clk
0:00:38.1]} 17. O-O-O {[%clk 0:01:11.6]} 17... Bd7 {[%clk 0:00:33.9]} 18. Bxe4
{[%clk 0:01:09.7]} 18... dxe4 {[%clk 0:00:33.6]} 19. g5 {[%clk 0:01:08.8]} 19...
Qf7 {[%clk 0:00:29.3]} 20. Qxf7+ {[%clk 0:01:02.7]} 20... Rxf7 {[%clk
0:00:29.3]} 21. Ne5 {[%clk 0:01:03]} 21... Ba4 {[%clk 0:00:23.4]} 22. gxh6
{[%clk 0:00:59.6]} 22... gxh6 {[%clk 0:00:20.4]} 23. Nxf7 {[%clk 0:00:59.9]}
23... Bxd1 {[%clk 0:00:18.1]} 24. Nxh6+ {[%clk 0:00:59.9]} 24... Kg7 {[%clk
0:00:18.7]} 25. Kxd1 {[%clk 0:01:00.1]} 25... Rh8 {[%clk 0:00:19.3]} 26. Ke2
{[%clk 0:00:53.3]} 1-0

[Event "Early-Titled-Tuesday-Blitz-October-03-2023"]
[Site "Chess.com"]
[Date "2023.10.03"]
[Round "9"]
[White "shimastream"]
[Black "Sethu0025"]
[Result "1-0"]
[WhiteElo "2973"]
[BlackElo "2867"]
[TimeControl "180+1"]
[EndTime "9:45:03 PDT"]
[Termination "shimastream won by resignation"]

1. d4 {[%clk 0:03:00.9]} 1... d5 {[%clk 0:02:59.4]} 2. Nf3 {[%clk 0:02:57.5]}
2... Nf6 {[%clk 0:02:59.1]} 3. Bg5 {[%clk 0:02:56.5]} 3... Ne4 {[%clk
0:02:57.8]} 4. Bh4 {[%clk 0:02:56.3]} 4... c5 {[%clk 0:02:55.3]} 5. e3 {[%clk
0:02:55.5]} 5... Qa5+ {[%clk 0:02:49]} 6. Nbd2 {[%clk 0:02:52.2]} 6... Bg4
{[%clk 0:02:48.8]} 7. c3 {[%clk 0:02:50.1]} 7... Nc6 {[%clk 0:02:46.9]} 8. dxc5
{[%clk 0:02:43.1]} 8... Qxc5 {[%clk 0:02:41.9]} 9. Qb3 {[%clk 0:02:26.7]} 9...
Nxd2 {[%clk 0:02:33.5]} 10. Nxd2 {[%clk 0:02:27.6]} 10... e6 {[%clk 0:02:20.6]}
11. Bd3 {[%clk 0:02:12.3]} 11... Bd6 {[%clk 0:02:12.4]} 12. O-O {[%clk
0:02:05.8]} 12... Qb6 {[%clk 0:02:04.1]} 13. Qc2 {[%clk 0:01:51.7]} 13... Rc8
{[%clk 0:01:57.4]} 14. Rfe1 {[%clk 0:01:40.8]} 14... Nb4 {[%clk 0:01:52.2]} 15.
Qa4+ {[%clk 0:01:39.7]} 15... Kf8 {[%clk 0:01:24.9]} 16. cxb4 {[%clk 0:01:38.2]}
16... Qxb4 {[%clk 0:01:22.1]} 17. Qd7 {[%clk 0:01:33.2]} 17... e5 {[%clk
0:01:07.2]} 18. Bf5 {[%clk 0:01:27.3]} 18... Bxf5 {[%clk 0:00:51.9]} 19. Qxf5
{[%clk 0:01:28.2]} 19... Re8 {[%clk 0:00:51.8]} 20. Nf3 {[%clk 0:01:24.9]} 20...
f6 {[%clk 0:00:40.7]} 21. Rac1 {[%clk 0:01:05.7]} 21... Kf7 {[%clk 0:00:18.5]}
22. Ng5+ {[%clk 0:00:58.5]} 22... Kg8 {[%clk 0:00:17.8]} 23. Qd7 {[%clk
0:00:57.4]} 1-0

[Event "Early-Titled-Tuesday-Blitz-October-03-2023"]
[Site "Chess.com"]
[Date "2023.10.03"]
[Round "9"]
[White "igorkovalenko"]
[Black "Oleksandr_Bortnyk"]
[Result "0-1"]
[WhiteElo "2885"]
[BlackElo "3021"]
[TimeControl "180+1"]
[EndTime "9:45:07 PDT"]
[Termination "Oleksandr_Bortnyk won by resignation"]

1. c4 {[%clk 0:02:59.5]} 1... Nf6 {[%clk 0:02:58.4]} 2. g3 {[%clk 0:02:59.4]}
2... g6 {[%clk 0:02:58.8]} 3. Bg2 {[%clk 0:02:59.4]} 3... Bg7 {[%clk 0:02:59.6]}
4. Nc3 {[%clk 0:02:59.5]} 4... d6 {[%clk 0:03:00.3]} 5. Nf3 {[%clk 0:02:59.8]}
5... O-O {[%clk 0:02:59.7]} 6. O-O {[%clk 0:03:00.3]} 6... c5 {[%clk 0:02:49.7]}
7. d4 {[%clk 0:02:59.9]} 7... Nc6 {[%clk 0:02:47.2]} 8. dxc5 {[%clk 0:02:58.1]}
8... dxc5 {[%clk 0:02:47.6]} 9. Be3 {[%clk 0:02:58.6]} 9... Bg4 {[%clk
0:02:37.7]} 10. Bxc5 {[%clk 0:02:55.9]} 10... Qa5 {[%clk 0:02:13.8]} 11. Ba3
{[%clk 0:02:47.3]} 11... Rfd8 {[%clk 0:02:10.7]} 12. Qa4 {[%clk 0:02:29.6]}
12... Qh5 {[%clk 0:02:02.5]} 13. Qb5 {[%clk 0:02:15.4]} 13... e5 {[%clk
0:01:52]} 14. Qxb7 {[%clk 0:02:13.5]} 14... Rac8 {[%clk 0:01:44.5]} 15. Rad1
{[%clk 0:01:59.7]} 15... Nd4 {[%clk 0:01:43]} 16. Rfe1 {[%clk 0:01:23.8]} 16...
Rb8 {[%clk 0:01:30.1]} 17. Qxa7 {[%clk 0:01:11.3]} 17... Nxe2+ {[%clk
0:01:21.9]} 18. Rxe2 {[%clk 0:00:53.1]} 18... Bxf3 {[%clk 0:01:22.8]} 19. Rxd8+
{[%clk 0:00:46.1]} 19... Rxd8 {[%clk 0:01:22.6]} 20. Rd2 {[%clk 0:00:45.5]}
20... Re8 {[%clk 0:01:14.6]} 21. h3 {[%clk 0:00:26.7]} 21... e4 {[%clk
0:01:11.4]} 22. Nd5 {[%clk 0:00:18.5]} 22... Bxg2 {[%clk 0:01:11.6]} 23. Nxf6+
{[%clk 0:00:17.3]} 23... Bxf6 {[%clk 0:01:12.5]} 24. Kxg2 {[%clk 0:00:17.4]}
24... Qf3+ {[%clk 0:01:12.4]} 25. Kh2 {[%clk 0:00:17.6]} 25... e3 {[%clk
0:01:09.7]} 26. fxe3 {[%clk 0:00:17.7]} 26... Be5 {[%clk 0:01:00.2]} 27. Rg2
{[%clk 0:00:17.3]} 27... Rd8 {[%clk 0:00:58.6]} 28. Qe7 {[%clk 0:00:16.2]} 28...
Bxg3+ {[%clk 0:00:58.5]} 0-1

[Event "Early-Titled-Tuesday-Blitz-October-03-2023"]
[Site "Chess.com"]
[Date "2023.10.03"]
[Round "9"]
[White "Firouzja2003"]
[Black "Hikaru"]
[Result "1/2-1/2"]
[WhiteElo "3126"]
[BlackElo "3263"]
[TimeControl "180+1"]
[EndTime "9:45:10 PDT"]
[Termination "Game drawn by agreement"]

1. e4 {[%clk 0:02:59.7]} 1... e5 {[%clk 0:03:00.3]} 2. Nf3 {[%clk 0:02:57.3]}
2... Nc6 {[%clk 0:03:00.8]} 3. Bc4 {[%clk 0:02:53.8]} 3... Nf6 {[%clk
0:03:00.3]} 4. d3 {[%clk 0:02:54.2]} 4... Bc5 {[%clk 0:03:00.2]} 5. c3 {[%clk
0:02:54.2]} 5... d6 {[%clk 0:03:00.6]} 6. O-O {[%clk 0:02:54]} 6... a6 {[%clk
0:03:01.3]} 7. Re1 {[%clk 0:02:53.6]} 7... O-O {[%clk 0:02:59.3]} 8. a4 {[%clk
0:02:52.7]} 8... Ba7 {[%clk 0:02:59.1]} 9. h3 {[%clk 0:02:51.3]} 9... h6 {[%clk
0:02:59]} 10. Nbd2 {[%clk 0:02:51.6]} 10... Re8 {[%clk 0:02:58.7]} 11. b4 {[%clk
0:02:50.8]} 11... Be6 {[%clk 0:02:59.2]} 12. Bxe6 {[%clk 0:02:50.3]} 12... Rxe6
{[%clk 0:03:00.1]} 13. Bb2 {[%clk 0:02:48]} 13... Ne7 {[%clk 0:02:55.4]} 14. d4
{[%clk 0:02:31.7]} 14... Ng6 {[%clk 0:02:55.8]} 15. c4 {[%clk 0:02:22.5]} 15...
exd4 {[%clk 0:02:27.8]} 16. Nxd4 {[%clk 0:02:16.1]} 16... Bxd4 {[%clk
0:02:04.9]} 17. Bxd4 {[%clk 0:02:16]} 17... c5 {[%clk 0:02:05.6]} 18. bxc5
{[%clk 0:01:55.8]} 18... dxc5 {[%clk 0:02:05]} 19. Bxc5 {[%clk 0:01:56.5]} 19...
Rc8 {[%clk 0:02:05.3]} 20. Ba3 {[%clk 0:01:42.3]} 20... Ne5 {[%clk 0:02:00.7]}
21. Qe2 {[%clk 0:00:33.5]} 21... Nh5 {[%clk 0:02:00.1]} 22. Qxh5 {[%clk
0:00:26.6]} 22... Qxd2 {[%clk 0:01:59.9]} 23. Rad1 {[%clk 0:00:26.4]} 23... Qg5
{[%clk 0:01:59.6]} 24. Qxg5 {[%clk 0:00:23.9]} 24... hxg5 {[%clk 0:01:59.8]} 25.
c5 {[%clk 0:00:23]} 25... Nc4 {[%clk 0:01:59.9]} 26. Bc1 {[%clk 0:00:20.9]}
26... Rxc5 {[%clk 0:01:59.6]} 27. Rd8+ {[%clk 0:00:21]} 27... Kh7 {[%clk
0:01:59.2]} 28. Rd7 {[%clk 0:00:21.5]} 28... b5 {[%clk 0:01:25.5]} 29. axb5
{[%clk 0:00:22.4]} 29... Ne5 {[%clk 0:01:14.1]} 30. Rb7 {[%clk 0:00:22.7]} 30...
Nd3 {[%clk 0:01:03.3]} 31. Be3 {[%clk 0:00:22.9]} 31... Rxb5 {[%clk 0:01:03.8]}
32. Rxb5 {[%clk 0:00:22.2]} 32... axb5 {[%clk 0:01:04.7]} 33. Rb1 {[%clk
0:00:22]} 33... Rxe4 {[%clk 0:00:59.5]} 34. Rxb5 {[%clk 0:00:21.9]} 34... f6
{[%clk 0:00:59.8]} 35. Rd5 {[%clk 0:00:20.4]} 35... Ne5 {[%clk 0:00:57.6]} 36.
Rd4 {[%clk 0:00:20]} 1/2-1/2

[Event "Early-Titled-Tuesday-Blitz-October-03-2023"]
[Site "Chess.com"]
[Date "2023.10.03"]
[Round "9"]
[White "gtnamfrq"]
[Black "mortngabriel"]
[Result "0-1"]
[WhiteElo "2416"]
[BlackElo "2569"]
[TimeControl "180+1"]
[EndTime "9:45:21 PDT"]
[Termination "mortngabriel won by resignation"]

1. e4 {[%clk 0:03:00.9]} 1... c5 {[%clk 0:02:58.6]} 2. Nf3 {[%clk 0:03:00.4]}
2... Nc6 {[%clk 0:02:59]} 3. Bb5 {[%clk 0:03:00.1]} 3... Nf6 {[%clk 0:02:58.9]}
4. Bxc6 {[%clk 0:02:56.8]} 4... dxc6 {[%clk 0:02:59.8]} 5. d3 {[%clk 0:02:57.4]}
5... Bg4 {[%clk 0:02:59.7]} 6. h3 {[%clk 0:02:56.8]} 6... Bh5 {[%clk 0:03:00.1]}
7. O-O {[%clk 0:02:49.1]} 7... Nd7 {[%clk 0:03:00.1]} 8. Be3 {[%clk 0:02:39.1]}
8... e5 {[%clk 0:02:56.2]} 9. Nbd2 {[%clk 0:02:36.2]} 9... Bd6 {[%clk
0:02:53.8]} 10. a4 {[%clk 0:02:28]} 10... O-O {[%clk 0:02:52.2]} 11. Nc4 {[%clk
0:02:27.9]} 11... Bc7 {[%clk 0:02:51.9]} 12. g4 {[%clk 0:02:27.7]} 12... Bg6
{[%clk 0:02:51.6]} 13. Kg2 {[%clk 0:02:09.7]} 13... Qe7 {[%clk 0:02:40]} 14. Bg5
{[%clk 0:01:55.1]} 14... f6 {[%clk 0:02:39.8]} 15. Bh4 {[%clk 0:01:55.7]} 15...
Rfd8 {[%clk 0:02:31.8]} 16. Qe2 {[%clk 0:01:54.2]} 16... Nf8 {[%clk 0:02:31.1]}
17. Bg3 {[%clk 0:01:44.2]} 17... Ne6 {[%clk 0:02:26.8]} 18. Ra3 {[%clk
0:01:26.2]} 18... b6 {[%clk 0:02:16.3]} 19. Ne3 {[%clk 0:01:24.8]} 19... Rd7
{[%clk 0:01:57.3]} 20. Rd1 {[%clk 0:01:15.8]} 20... Rad8 {[%clk 0:01:56.4]} 21.
Nf5 {[%clk 0:01:09.7]} 21... Bxf5 {[%clk 0:01:49.6]} 22. gxf5 {[%clk 0:01:06.6]}
22... Nd4 {[%clk 0:01:47.6]} 23. Nxd4 {[%clk 0:01:06.2]} 23... cxd4 {[%clk
0:01:42.5]} 24. Kh2 {[%clk 0:00:58.8]} 24... Qb4 {[%clk 0:01:29.2]} 25. Rb3
{[%clk 0:00:40.8]} 25... Qxa4 {[%clk 0:01:24.9]} 26. Rg1 {[%clk 0:00:41.3]}
26... Bd6 {[%clk 0:01:15.4]} 27. Bh4 {[%clk 0:00:33.8]} 27... Rf7 {[%clk
0:01:10.6]} 28. Qh5 {[%clk 0:00:29.5]} 28... Bf8 {[%clk 0:01:07.2]} 29. Rb1
{[%clk 0:00:21.9]} 29... c5 {[%clk 0:01:03]} 30. Qd1 {[%clk 0:00:21]} 30... c4
{[%clk 0:01:02.1]} 31. Ra1 {[%clk 0:00:18.5]} 31... Qc6 {[%clk 0:00:57.2]} 32.
dxc4 {[%clk 0:00:15.5]} 32... Qxe4 {[%clk 0:00:55.1]} 33. Rf3 {[%clk 0:00:11]}
33... Qxh4 {[%clk 0:00:54.4]} 0-1